[Event "22nd Ruzomberok Open 2019"]
[Site "Ruzomberok"]
[Date "2019.06.30"]
[Round "2.27"]
[White "Mocary, Metod"]
[Black "Kunzo, Slavomir"]
[Result "1/2-1/2"]
[ECO "D43"]
[WhiteElo "1830"]
[BlackElo "1593"]
[Annotator "NA"]
[PlyCount "55"]
[EventDate "2019.06.29"]
[EventType "swiss"]
[EventCountry "SVK"]
[SourceTitle "playchess.com"]
[Source "ChessBase"]
[SourceQuality "1"]
[TimeControl "40/5400+30:1800+30"]

1. d4 {[%emt 0:00:00]} d5 {[%emt 0:00:00]} 2. Nf3 {[%emt 0:00:08]} Nf6 {[%emt 0:00:04]} 3. c4 {[%emt 0:01:04]} e6 {[%emt 0:00:23]} 4. Nc3 {[%emt 0:01:08]} c6 {[%emt 0:01:25]} 5. Bg5 {[%emt 0:02:15]} Be7 {[%emt 0:00:35]} 6. e3 {[%emt 0:00:28]} O-O {[%emt 0:02:09]} 7. Bd3 {[%emt 0:02:43]} Nbd7 {[%emt 0:02:33]} 8. O-O {[%emt 0:00:14]} h6 {[%emt 0:01:36]} 9. Bh4 {[%emt 0:02:02]} b6 {[%emt 0:01:03]} 10. Rc1 {[%emt 0:06:08]} Bb7 {[%emt 0:00:17]} 11. cxd5 {[%emt 0:02:31]} cxd5 {[%emt 0:02:49]} 12. Ne5 {[%emt 0:07:01]} Nxe5 {[%emt 0:05:40]} 13. dxe5 {[%emt 0:00:07]} Ne4 {[%emt 0:01:18]} 14. Bxe7 {[%emt 0:01:10]} Qxe7 {[%emt 0:02:23]} 15. a3 {[%emt 0:20:29]} Nc5 {[%emt 0:08:05]} 16. Bb1 {[%emt 0:01:09]} Ba6 {[%emt 0:03:18]} 17. Re1 {[%emt 0:00:27]} f5 {[%emt 0:04:11]} 18. b4 {[%emt 0:01:54]} Ne4 {[%emt 0:01:17]} 19. f4 {[%emt 0:08:50]} Rfc8 {[%emt 0:04:35]} 20. Nxe4 {[%emt 0:01:08]} Rxc1 {[%emt 0:01:42]} 21. Qxc1 {[%emt 0:02:46]} dxe4 {[%emt 0:01:31]} 22. Rd1 {[%emt 0:06:16]} Rc8 {[%emt 0:01:53]} 23. Qd2 {[%emt 0:01:19]} Bc4 {[%emt 0:01:19]} 24. Ba2 {[%emt 0:07:12]} b5 {[%emt 0:08:14]} 25. Bxc4 {[%emt 0:00:40]} bxc4 {[%emt 0:05:02]} 26. Qc3 {[%emt 0:00:24]} Qc7 27. Rd6 Kf7 28. b5 1/2-1/2

[Event "22nd Ruzomberok Open 2019"]
[Site "Ruzomberok"]
[Date "2019.06.30"]
[Round "2.28"]
[White "Horbal, Jozef"]
[Black "Bartanus, Stanislav"]
[Result "*"]
[ECO "D85"]
[WhiteElo "1660"]
[BlackElo "1781"]
[Annotator "NA"]
[PlyCount "81"]
[EventDate "2019.06.29"]
[EventType "swiss"]
[EventCountry "SVK"]
[SourceTitle "playchess.com"]
[Source "ChessBase"]
[SourceQuality "1"]
[TimeControl "40/5400+30:1800+30"]

1. d4 {[%emt 0:00:00]} Nf6 {[%emt 0:00:00]} 2. c4 {[%emt 0:00:00]} g6 {[%emt 0:00:08]} 3. Nf3 {[%emt 0:00:39]} Bg7 {[%emt 0:02:02]} 4. Nc3 {[%emt 0:00:34]} d5 {[%emt 0:01:44]} 5. cxd5 {[%emt 0:02:08]} Nxd5 {[%emt 0:02:58]} 6. e4 {[%emt 0:00:15]} Nxc3 {[%emt 0:00:00]} 7. bxc3 {[%emt 0:00:18]} c5 {[%emt 0:00:18]} 8. Be3 {[%emt 0:01:03]} O-O {[%emt 0:03:17]} 9. Be2 {[%emt 0:08:09]} Nc6 {[%emt 0:01:33]} 10. O-O {[%emt 0:00:46]} Bg4 {[%emt 0:04:38]} 11. d5 {[%emt 0:04:54]} Ne5 {[%emt 0:06:21]} 12. Bxc5 {[%emt 0:00:46]} Qc7 {[%emt 0:01:19]} 13. Bd4 {[%emt 0:00:39]} Bxf3 {[%emt 0:05:51]} 14. Bxf3 {[%emt 0:02:33]} Nxf3+ {[%emt 0:03:07]} 15. Qxf3 {[%emt 0:01:04]} Qc4 {[%emt 0:00:18]} 16. Rfd1 {[%emt 0:05:01]} Rfc8 {[%emt 0:00:54]} 17. Bxg7 {[%emt 0:04:51]} Kxg7 {[%emt 0:00:01]} 18. Rd3 {[%emt 0:01:01]} Rc7 {[%emt 0:01:27]} 19. h3 {[%emt 0:03:23]} Rac8 {[%emt 0:00:53]} 20. Qe3 {[%emt 0:00:38]} Qc5 {[%emt 0:00:28]} 21. Qd4+ {[%emt 0:03:14]} Qxd4 {[%emt 0:01:02]} 22. cxd4 {[%emt 0:00:21]} Rc2 {[%emt 0:00:25]} 23. a3 {[%emt 0:02:37]} Re2 {[%emt 0:01:26]} 24. e5 {[%emt 0:01:17]} Rcc2 {[%emt 0:00:17]} 25. Rf1 {[%emt 0:00:55]} Kf8 {[%emt 0:01:53]} 26. g3 {[%emt 0:00:54]} Ke8 {[%emt 0:00:13]} 27. Kg2 {[%emt 0:01:09]} Red2 {[%emt 0:01:44]} 28. Rxd2 {[%emt 0:03:00]} Rxd2 {[%emt 0:00:03]} 29. Rb1 {[%emt 0:00:26]} Rxd4 {[%emt 0:01:00]} 30. Rxb7 {[%emt 0:00:12]} Rxd5 {[%emt 0:00:01]} 31. Rxa7 {[%emt 0:00:23]} Rxe5 {[%emt 0:00:02]} 32. a4 {[%emt 0:00:32]} h5 {[%emt 0:01:58]} 33. a5 {[%emt 0:00:17]} f6 {[%emt 0:00:24]} 34. a6 {[%emt 0:00:13]} Ra5 {[%emt 0:00:05]} 35. Ra8+ {[%emt 0:00:21]} Kf7 {[%emt 0:00:01]} 36. a7 {[%emt 0:00:20]} Ra3 {[%emt 0:02:26]} 37. Kf1 {[%emt 0:03:35]} g5 {[%emt 0:02:48]} 38. Kg2 {[%emt 0:04:46]} Ke6 {[%emt 0:00:58]} 39. Kf1 {[%emt 0:03:04]} Kf7 {[%emt 0:03:44]} 40. Kg2 {[%emt 0:00:24]} Ke6 {[%emt 0:00:11]} 41. Kf1 *

[Event "22nd Ruzomberok Open 2019"]
[Site "Ruzomberok"]
[Date "2019.06.30"]
[Round "2.29"]
[White "Kapicakova, Lucia"]
[Black "Slivka, Vasil"]
[Result "1/2-1/2"]
[ECO "A05"]
[WhiteElo "1776"]
[BlackElo "1562"]
[Annotator "NA"]
[PlyCount "122"]
[EventDate "2019.06.29"]
[EventType "swiss"]
[EventCountry "SVK"]
[SourceTitle "playchess.com"]
[Source "ChessBase"]
[SourceQuality "1"]
[TimeControl "40/5400+30:1800+30"]

1. Nf3 {[%emt 0:00:00]} Nf6 {[%emt 0:00:00]} 2. g3 {[%emt 0:00:00]} g6 {[%emt 0:00:00]} 3. b3 {[%emt 0:00:00]} Bg7 {[%emt 0:00:21]} 4. Bb2 {[%emt 0:00:00]} d6 {[%emt 0:00:46]} 5. d4 {[%emt 0:00:11]} O-O {[%emt 0:03:34]} 6. c4 {[%emt 0:01:47]} Na6 {[%emt 0:01:51]} 7. Bg2 {[%emt 0:00:50]} Rb8 {[%emt 0:00:13]} 8. Nc3 {[%emt 0:04:24]} c6 {[%emt 0:01:53]} 9. e4 {[%emt 0:15:52]} Nc7 {[%emt 0:03:18]} 10. O-O {[%emt 0:01:40]} Bd7 {[%emt 0:02:16]} 11. Qc2 {[%emt 0:04:58]} Qc8 {[%emt 0:02:54]} 12. Ne2 {[%emt 0:04:00]} Nh5 {[%emt 0:07:25]} 13. e5 {[%emt 0:09:00]} d5 {[%emt 0:03:02]} 14. Nh4 {[%emt 0:09:21]} Bh6 {[%emt 0:03:36]} 15. f4 {[%emt 0:11:31]} Ng7 {[%emt 0:01:03]} 16. Rf2 {[%emt 0:04:25]} Nf5 {[%emt 0:00:37]} 17. Nxf5 {[%emt 0:03:55]} Bxf5 {[%emt 0:00:37]} 18. Qd2 {[%emt 0:01:49]} Be6 {[%emt 0:03:31]} 19. Rc1 {[%emt 0:04:04]} Qd8 {[%emt 0:01:22]} 20. h3 {[%emt 0:04:29]} f5 {[%emt 0:02:11]} 21. Qd3 {[%emt 0:05:23]} Rf7 {[%emt 0:04:06]} 22. Rcf1 {[%emt 0:01:19]} a6 {[%emt 0:01:43]} 23. Bf3 {[%emt 0:03:29]} Qd7 {[%emt 0:01:51]} 24. c5 {[%emt 0:01:40]} Ne8 {[%emt 0:01:12]} 25. Kh2 {[%emt 0:00:59]} Ng7 {[%emt 0:00:52]} 26. Rg2 {[%emt 0:00:53]} Nh5 {[%emt 0:03:21]} 27. Bxh5 {[%emt 0:01:23]} gxh5 {[%emt 0:01:17]} 28. Qf3 {[%emt 0:00:21]} Bf8 {[%emt 0:02:09]} 29. Qxh5 {[%emt 0:00:26]} Rg7 {[%emt 0:00:25]} 30. Rfg1 {[%emt 0:01:10]} Bf7 {[%emt 0:00:07]} 31. Qf3 {[%emt 0:00:35]} e6 {[%emt 0:00:16]} 32. g4 {[%emt 0:01:05]} Bg6 {[%emt 0:00:30]} 33. gxf5 {[%emt 0:00:56]} exf5 {[%emt 0:01:38]} 34. h4 {[%emt 0:02:25]} Qf7 {[%emt 0:00:36]} 35. Ng3 {[%emt 0:01:18]} h5 {[%emt 0:01:08]} 36. Ne2 {[%emt 0:00:42]} Re8 {[%emt 0:01:23]} 37. Rg3 {[%emt 0:00:18]} Re6 {[%emt 0:00:21]} 38. Qg2 {[%emt 0:00:46]} Be7 {[%emt 0:03:35]} 39. Kh3 {[%emt 0:00:26]} Kh7 {[%emt 0:01:20]} 40. Rf1 {[%emt 0:01:02]} Qe8 {[%emt 0:00:47]} 41. Ng1 {[%emt 0:02:13]} Qf7 {[%emt 0:00:15]} 42. Nf3 {[%emt 0:03:17]} Qe8 {[%emt 0:01:23]} 43. Rg1 {[%emt 0:00:48]} Qf7 {[%emt 0:00:20]} 44. Bc3 {[%emt 0:01:48]} Qe8 {[%emt 0:01:04]} 45. Ba5 {[%emt 0:00:52]} Qd7 {[%emt 0:01:38]} 46. b4 {[%emt 0:02:19]} Qc8 {[%emt 0:35:23]} 47. a4 {[%emt 0:02:25]} Qd7 {[%emt 0:07:12]} 48. Qe2 {[%emt 0:02:13]} Kh6 {[%emt 0:06:05]} 49. Rb1 {[%emt 0:01:17]} Be8 {[%emt 0:02:05]} 50. Rxg7 {[%emt 0:04:04]} Kxg7 {[%emt 0:00:49]} 51. Rg1+ {[%emt 0:00:48]} Bg6 {[%emt 0:00:27]} 52. Nd2 {[%emt 0:03:11]} Kh6 {[%emt 0:00:24]} 53. Qg2 {[%emt 0:01:34]} Qe8 {[%emt 0:03:30]} 54. Nb1 {[%emt 0:04:19]} Qf7 {[%emt 0:01:15]} 55. Nc3 {[%emt 0:00:33]} Bh7 {[%emt 0:01:36]} 56. b5 {[%emt 0:01:27]} Rg6 {[%emt 0:00:38]} 57. Qf2 {[%emt 0:00:38]} Rg4 {[%emt 0:00:15]} 58. Rxg4 {[%emt 0:01:59]} hxg4+ {[%emt 0:00:24]} 59. Kg2 {[%emt 0:02:05]} Qh5 60. Kf1 Bxh4 61. Qh2 Bg5 1/2-1/2

[Event "22nd Ruzomberok Open 2019"]
[Site "Ruzomberok"]
[Date "2019.06.30"]
[Round "2.30"]
[White "Gasper, Jaroslav"]
[Black "Hajtmansky, Milan"]
[Result "1-0"]
[ECO "B06"]
[WhiteElo "1772"]
[BlackElo "1521"]
[Annotator "NA"]
[PlyCount "87"]
[EventDate "2019.06.29"]
[EventType "swiss"]
[EventCountry "SVK"]
[SourceTitle "playchess.com"]
[Source "ChessBase"]
[SourceQuality "1"]
[TimeControl "40/5400+30:1800+30"]

1. e4 {[%emt 0:00:36]} g6 {[%emt 0:00:44]} 2. d4 {[%emt 0:00:05]} Bg7 3. c4 e6 {[%emt 0:02:02]} 4. Nc3 {[%emt 0:01:12]} Ne7 {[%emt 0:00:51]} 5. h4 {[%emt 0:00:18]} b6 {[%emt 0:02:25]} 6. a4 {[%emt 0:02:25]} Bb7 {[%emt 0:00:17]} 7. Nf3 {[%emt 0:00:20]} Nbc6 {[%emt 0:01:04]} 8. Be3 {[%emt 0:00:48]} a6 {[%emt 0:02:19]} 9. Qd2 {[%emt 0:00:37]} h5 {[%emt 0:05:42]} 10. Ng5 {[%emt 0:02:51]} Na5 {[%emt 0:04:24]} 11. Qc2 {[%emt 0:00:21]} Nac6 {[%emt 0:01:46]} 12. e5 {[%emt 0:03:32]} Nf5 {[%emt 0:01:30]} 13. d5 {[%emt 0:01:38]} Nxe5 {[%emt 0:06:29]} 14. dxe6 {[%emt 0:00:22]} fxe6 {[%emt 0:02:07]} 15. O-O-O {[%emt 0:01:03]} Qe7 {[%emt 0:01:29]} 16. Bf4 {[%emt 0:00:51]} d6 {[%emt 0:02:26]} 17. Nge4 {[%emt 0:03:26]} Bxe4 {[%emt 0:09:22]} 18. Qxe4 {[%emt 0:00:59]} Kf7 {[%emt 0:04:18]} 19. Bg5 {[%emt 0:03:49]} Bf6 {[%emt 0:01:05]} 20. Be2 {[%emt 0:00:55]} Nd7 {[%emt 0:10:32]} 21. Bd3 {[%emt 0:05:47]} Nc5 {[%emt 0:00:53]} 22. Qf3 {[%emt 0:02:07]} Bxg5+ 23. hxg5 Qxg5+ {[%emt 0:02:21]} 24. Kb1 {[%emt 0:00:35]} Nb3 {[%emt 0:04:43]} 25. Ka2 {[%emt 0:01:25]} Nbd4 {[%emt 0:01:46]} 26. Qe4 {[%emt 0:01:10]} Qg4 {[%emt 0:05:05]} 27. f4 {[%emt 0:01:47]} c5 {[%emt 0:03:11]} 28. Qb7+ {[%emt 0:00:31]} Ne7 29. Rhe1 {[%emt 0:01:16]} Rhb8 {[%emt 0:05:46]} 30. Qc7 {[%emt 0:01:03]} Ndc6 {[%emt 0:15:11]} 31. f5 {[%emt 0:09:41]} Nb4+ {[%emt 0:01:16]} 32. Kb3 {[%emt 0:00:58]} Nbc6 {[%emt 0:00:55]} 33. fxg6+ {[%emt 0:00:47]} Kg7 {[%emt 0:00:08]} 34. Rf1 {[%emt 0:02:44]} Nd4+ {[%emt 0:00:28]} 35. Ka2 {[%emt 0:00:22]} Ndf5 {[%emt 0:00:20]} 36. Bxf5 {[%emt 0:00:11]} Qxc4+ {[%emt 0:00:15]} 37. Ka1 {[%emt 0:00:30]} Qh4 {[%emt 0:01:18]} 38. Bxe6 {[%emt 0:00:19]} Kxg6 {[%emt 0:00:31]} 39. Qxd6 {[%emt 0:00:15]} Rd8 {[%emt 0:00:46]} 40. Bd7+ {[%emt 0:00:02]} Kg7 {[%emt 0:00:29]} 41. Qe5+ {[%emt 0:30:03]} Kg8 {[%emt 0:30:26]} 42. Be6+ {[%emt 0:00:05]} Kh7 {[%emt 0:00:16]} 43. Rf7+ {[%emt 0:00:09]} Kh6 {[%emt 0:00:21]} 44. Qg7# {[%emt 0:00:04]} 1-0

[Event "22nd Ruzomberok Open 2019"]
[Site "Ruzomberok"]
[Date "2019.06.30"]
[Round "2.31"]
[White "Demko, Ladislav"]
[Black "Korenova, Simona"]
[Result "0-1"]
[ECO "B84"]
[WhiteElo "1642"]
[BlackElo "1764"]
[Annotator "NA"]
[PlyCount "126"]
[EventDate "2019.06.29"]
[EventType "swiss"]
[EventCountry "SVK"]
[SourceTitle "playchess.com"]
[Source "ChessBase"]
[SourceQuality "1"]
[TimeControl "40/5400+30:1800+30"]

1. e4 {[%emt 0:00:00]} c5 {[%emt 0:00:00]} 2. Nf3 {[%emt 0:00:00]} d6 {[%emt 0:00:10]} 3. d4 {[%emt 0:00:00]} cxd4 {[%emt 0:00:30]} 4. Nxd4 {[%emt 0:03:29]} Nf6 {[%emt 0:00:36]} 5. Nc3 {[%emt 0:00:18]} a6 {[%emt 0:00:45]} 6. Be2 {[%emt 0:00:13]} e6 {[%emt 0:00:18]} 7. Be3 {[%emt 0:00:11]} Be7 {[%emt 0:00:35]} 8. Qd2 {[%emt 0:00:13]} O-O {[%emt 0:00:46]} 9. f3 {[%emt 0:00:14]} b5 {[%emt 0:00:33]} 10. O-O {[%emt 0:03:37]} Bb7 {[%emt 0:00:29]} 11. g4 {[%emt 0:00:23]} Nc6 {[%emt 0:01:23]} 12. Nxc6 {[%emt 0:00:46]} Bxc6 {[%emt 0:00:07]} 13. g5 {[%emt 0:00:46]} Nd7 {[%emt 0:05:13]} 14. a3 {[%emt 0:02:28]} f6 {[%emt 0:02:13]} 15. f4 {[%emt 0:01:23]} Qe8 {[%emt 0:07:30]} 16. Bg4 {[%emt 0:04:34]} Qf7 {[%emt 0:01:36]} 17. f5 {[%emt 0:07:27]} exf5 {[%emt 0:06:43]} 18. Bxf5 {[%emt 0:03:54]} Ne5 {[%emt 0:21:31]} 19. b3 {[%emt 0:00:26]} Qh5 {[%emt 0:01:36]} 20. Qg2 {[%emt 0:02:56]} fxg5 {[%emt 0:01:53]} 21. Be6+ {[%emt 0:02:36]} Kh8 {[%emt 0:01:11]} 22. Nd5 {[%emt 0:02:47]} Bxd5 {[%emt 0:03:55]} 23. Bxd5 {[%emt 0:00:10]} Rae8 {[%emt 0:00:50]} 24. Kh1 {[%emt 0:02:00]} Bf6 {[%emt 0:04:31]} 25. Rad1 {[%emt 0:02:25]} Ng4 {[%emt 0:08:05]} 26. Bg1 {[%emt 0:01:51]} Be5 {[%emt 0:02:06]} 27. Rxf8+ {[%emt 0:02:51]} Rxf8 {[%emt 0:00:05]} 28. Rd3 {[%emt 0:00:31]} Nf6 {[%emt 0:09:34]} 29. Rh3 {[%emt 0:00:31]} Qg6 {[%emt 0:00:44]} 30. Rf3 {[%emt 0:01:21]} Bf4 {[%emt 0:01:47]} 31. Rc3 {[%emt 0:01:37]} Nh5 {[%emt 0:02:34]} 32. Qg4 {[%emt 0:00:58]} Qe8 {[%emt 0:02:55]} 33. Qe6 {[%emt 0:00:31]} Nf6 {[%emt 0:05:33]} 34. Qxe8 {[%emt 0:00:31]} Rxe8 {[%emt 0:00:05]} 35. Rc6 Nxd5 36. exd5 {[%emt 0:07:36]} Ra8 {[%emt 0:00:49]} 37. Bd4 {[%emt 0:00:16]} h5 {[%emt 0:02:38]} 38. Rc7 Be5 39. Be3 {[%emt 0:05:31]} g4 {[%emt 0:00:39]} 40. Kg2 {[%emt 0:01:20]} Kh7 {[%emt 0:01:19]} 41. c4 {[%emt 0:30:42]} bxc4 {[%emt 0:31:21]} 42. bxc4 {[%emt 0:00:56]} Rb8 {[%emt 0:00:04]} 43. Ra7 {[%emt 0:00:13]} Rb2+ {[%emt 0:00:28]} 44. Kf1 {[%emt 0:00:16]} Rb3 {[%emt 0:00:26]} 45. Ke2 {[%emt 0:01:18]} Rxa3 {[%emt 0:00:24]} 46. Re7 {[%emt 0:00:06]} Bxh2 {[%emt 0:02:28]} 47. c5 {[%emt 0:00:07]} dxc5 {[%emt 0:00:43]} 48. Bxc5 {[%emt 0:00:09]} Ra5 {[%emt 0:00:22]} 49. Bd4 {[%emt 0:00:35]} Rxd5 {[%emt 0:00:34]} 50. Bxg7 {[%emt 0:00:13]} Kg6 {[%emt 0:00:43]} 51. Bc3 {[%emt 0:02:46]} Rd6 {[%emt 0:00:11]} 52. Rg7+ {[%emt 0:00:31]} Kf5 {[%emt 0:00:15]} 53. Rf7+ {[%emt 0:00:13]} Kg5 {[%emt 0:00:17]} 54. Rg7+ {[%emt 0:00:10]} Kh4 {[%emt 0:00:25]} 55. Kf2 {[%emt 0:01:07]} Kh3 {[%emt 0:00:33]} 56. Rg5 {[%emt 0:00:53]} g3+ {[%emt 0:00:27]} 57. Ke3 {[%emt 0:01:01]} h4 {[%emt 0:00:50]} 58. Be5 {[%emt 0:00:46]} Re6 {[%emt 0:00:06]} 59. Kf3 {[%emt 0:00:34]} Rb6 {[%emt 0:00:42]} 60. Ke2 {[%emt 0:02:48]} g2 {[%emt 0:00:04]} 61. Bxh2 Kxh2 62. Kf2 {[%emt 0:01:53]} g1=Q+ {[%emt 0:01:00]} 63. Rxg1 Rf6+ 0-1

[Event "22nd Ruzomberok Open 2019"]
[Site "Ruzomberok"]
[Date "2019.06.30"]
[Round "2.32"]
[White "Piecka, Juraj"]
[Black "Segeda, Milos"]
[Result "1-0"]
[ECO "C40"]
[WhiteElo "1761"]
[BlackElo "1446"]
[Annotator "NA"]
[PlyCount "43"]
[EventDate "2019.06.29"]
[EventType "swiss"]
[EventCountry "SVK"]
[SourceTitle "playchess.com"]
[Source "ChessBase"]
[SourceQuality "1"]
[TimeControl "40/5400+30:1800+30"]

1. e4 {[%emt 0:11:37]} e5 {[%emt 0:00:00]} 2. Nf3 {[%emt 0:00:14]} d5 {[%emt 0:01:14]} 3. Nxe5 {[%emt 0:01:18]} dxe4 {[%emt 0:00:34]} 4. Bc4 {[%emt 0:00:16]} Be6 {[%emt 0:01:29]} 5. Bxe6 {[%emt 0:00:14]} Nh6 {[%emt 0:02:19]} 6. Bb3 {[%emt 0:03:37]} Qf6 {[%emt 0:03:08]} 7. d4 {[%emt 0:07:20]} exd3 {[%emt 0:01:20]} 8. O-O {[%emt 0:01:04]} dxc2 {[%emt 0:00:27]} 9. Bxc2 {[%emt 0:01:10]} Bd6 {[%emt 0:02:03]} 10. Bxh6 {[%emt 0:03:24]} Bxe5 {[%emt 0:02:23]} 11. Bg5 {[%emt 0:02:43]} Qxg5 {[%emt 0:03:42]} 12. f4 {[%emt 0:01:35]} Bxf4 {[%emt 0:05:41]} 13. Rxf4 {[%emt 0:03:05]} Qxf4 {[%emt 0:02:24]} 14. Qe2+ {[%emt 0:04:30]} Kf8 {[%emt 0:04:57]} 15. Nc3 {[%emt 0:00:34]} c6 {[%emt 0:04:34]} 16. Rf1 {[%emt 0:01:57]} Qd4+ {[%emt 0:00:57]} 17. Kh1 {[%emt 0:00:02]} Na6 {[%emt 0:02:28]} 18. Bb3 {[%emt 0:01:01]} f6 {[%emt 0:02:02]} 19. Qe6 {[%emt 0:01:19]} Qd5 {[%emt 0:05:17]} 20. Nxd5 {[%emt 0:00:30]} Re8 {[%emt 0:00:40]} 21. Rxf6+ {[%emt 0:00:11]} gxf6 {[%emt 0:00:21]} 22. Qxf6+ {[%emt 0:00:03]} 1-0

[Event "22nd Ruzomberok Open 2019"]
[Site "Ruzomberok"]
[Date "2019.06.30"]
[Round "2.33"]
[White "Cebo, Vladimir"]
[Black "Mudron, Jan"]
[Result "0-1"]
[ECO "A16"]
[WhiteElo "1577"]
[BlackElo "1756"]
[Annotator "NA"]
[PlyCount "170"]
[EventDate "2019.06.29"]
[EventType "swiss"]
[EventCountry "SVK"]
[SourceTitle "playchess.com"]
[Source "ChessBase"]
[SourceQuality "1"]
[TimeControl "40/5400+30:1800+30"]

1. c4 {[%emt 0:00:00]} Nf6 {[%emt 0:00:02]} 2. Nc3 {[%emt 0:00:06]} c5 {[%emt 0:01:04]} 3. e3 {[%emt 0:00:13]} g6 {[%emt 0:02:38]} 4. Nf3 {[%emt 0:00:41]} Bg7 {[%emt 0:00:35]} 5. Be2 {[%emt 0:00:26]} O-O {[%emt 0:00:32]} 6. O-O {[%emt 0:00:12]} d6 {[%emt 0:04:27]} 7. d4 {[%emt 0:00:49]} cxd4 {[%emt 0:10:29]} 8. exd4 {[%emt 0:02:10]} Nbd7 {[%emt 0:01:19]} 9. Bf4 {[%emt 0:03:39]} Nh5 {[%emt 0:03:37]} 10. Bg5 {[%emt 0:01:41]} Nhf6 {[%emt 0:03:05]} 11. Qd2 {[%emt 0:05:52]} Re8 {[%emt 0:00:36]} 12. Rad1 {[%emt 0:03:57]} Nf8 {[%emt 0:07:37]} 13. h3 {[%emt 0:01:06]} Bd7 {[%emt 0:07:53]} 14. d5 {[%emt 0:11:29]} a6 {[%emt 0:08:40]} 15. Nd4 {[%emt 0:09:47]} Qc8 {[%emt 0:03:17]} 16. Qd3 {[%emt 0:02:17]} Rb8 {[%emt 0:06:48]} 17. Ne4 {[%emt 0:02:28]} Nxe4 {[%emt 0:02:47]} 18. Qxe4 {[%emt 0:00:15]} f6 {[%emt 0:06:26]} 19. Bc1 {[%emt 0:04:43]} b5 {[%emt 0:03:52]} 20. cxb5 {[%emt 0:06:19]} axb5 {[%emt 0:00:02]} 21. Rfe1 {[%emt 0:05:29]} b4 {[%emt 0:05:00]} 22. Nc6 {[%emt 0:03:13]} Bxc6 {[%emt 0:00:58]} 23. dxc6 {[%emt 0:00:04]} Kh8 {[%emt 0:08:07]} 24. Bc4 {[%emt 0:03:25]} g5 {[%emt 0:00:07]} 25. Qd5 {[%emt 0:12:19]} Ng6 {[%emt 0:00:07]} 26. Bb5 {[%emt 0:01:25]} Qc7 {[%emt 0:00:22]} 27. Ba4 {[%emt 0:01:47]} Ra8 {[%emt 0:01:59]} 28. b3 {[%emt 0:00:37]} Rab8 {[%emt 0:00:34]} 29. Bb2 {[%emt 0:02:46]} Nf4 {[%emt 0:01:07]} 30. Qf3 {[%emt 0:01:57]} Ng6 {[%emt 0:00:14]} 31. Qg4 {[%emt 0:00:47]} Nf8 {[%emt 0:00:53]} 32. h4 {[%emt 0:00:31]} gxh4 {[%emt 0:00:35]} 33. Qxh4 {[%emt 0:00:07]} Ng6 {[%emt 0:01:11]} 34. Qg4 {[%emt 0:00:18]} Ne5 {[%emt 0:00:36]} 35. Bxe5 {[%emt 0:00:39]} fxe5 {[%emt 0:00:10]} 36. Rd3 {[%emt 0:01:06]} Rg8 {[%emt 0:00:24]} 37. Rh3 {[%emt 0:00:41]} Bf6 {[%emt 0:00:29]} 38. Qe4 {[%emt 0:01:32]} Rg7 {[%emt 0:00:57]} 39. g3 {[%emt 0:00:12]} Rf8 {[%emt 0:06:44]} 40. Bb5 {[%emt 0:00:39]} Qb6 {[%emt 0:00:50]} 41. Bd3 {[%emt 0:31:10]} Rff7 {[%emt 0:32:22]} 42. Rf1 {[%emt 0:03:45]} e6 {[%emt 0:00:00]} 43. Qc4 {[%emt 0:00:00]} d5 {[%emt 0:00:00]} 44. Qc2 {[%emt 0:00:00]} e4 {[%emt 0:00:00]} 45. Be2 {[%emt 0:00:00]} Bd4 {[%emt 0:00:00]} 46. Bh5 {[%emt 0:00:00]} Rf8 {[%emt 0:00:00]} 47. Kg2 {[%emt 0:00:00]} Bc3 {[%emt 0:00:00]} 48. Qc1 {[%emt 0:00:00]} Qxc6 {[%emt 0:00:00]} 49. Rfh1 {[%emt 0:00:00]} Qb6 {[%emt 0:00:00]} 50. Qc2 {[%emt 0:00:00]} Rf6 {[%emt 0:00:00]} 51. f3 {[%emt 0:00:00]} exf3+ {[%emt 0:00:00]} 52. Bxf3 {[%emt 0:00:00]} Rff7 {[%emt 0:00:00]} 53. Qe2 {[%emt 0:00:00]} Qd6 {[%emt 0:00:00]} 54. Qd3 {[%emt 0:00:00]} Qe7 {[%emt 0:01:22]} 55. Bh5 {[%emt 0:00:00]} Rf6 {[%emt 0:01:17]} 56. Bf3 {[%emt 0:01:49]} Rff7 {[%emt 0:00:32]} 57. a3 {[%emt 0:00:20]} Qg5 {[%emt 0:01:29]} 58. a4 {[%emt 0:03:12]} Qd2+ {[%emt 0:00:08]} 59. Qxd2 {[%emt 0:00:53]} Bxd2 {[%emt 0:00:05]} 60. Rh6 {[%emt 0:00:18]} Bxh6 {[%emt 0:00:05]} 61. Rxh6 {[%emt 0:00:02]} Rg6 {[%emt 0:00:20]} 62. Rh4 {[%emt 0:00:10]} Rb7 {[%emt 0:00:19]} 63. Kf2 Kg7 {[%emt 0:00:20]} 64. Be2 {[%emt 0:01:35]} Rh6 {[%emt 0:00:23]} 65. Rd4 {[%emt 0:01:01]} Kf6 {[%emt 0:00:25]} 66. Bb5 {[%emt 0:00:04]} Ke5 {[%emt 0:00:18]} 67. Rxb4 {[%emt 0:00:16]} Rf6+ {[%emt 0:01:18]} 68. Ke3 {[%emt 0:00:48]} Rg6 {[%emt 0:00:12]} 69. Kf3 {[%emt 0:00:28]} Rf6+ {[%emt 0:00:21]} 70. Ke3 {[%emt 0:01:04]} Rg6 {[%emt 0:00:34]} 71. Kf3 {[%emt 0:00:14]} Rc7 {[%emt 0:01:14]} 72. g4 {[%emt 0:02:06]} Rc3+ {[%emt 0:00:13]} 73. Kf2 {[%emt 0:00:16]} Rh6 {[%emt 0:00:27]} 74. Kg2 {[%emt 0:00:17]} Rf6 {[%emt 0:00:24]} 75. a5 {[%emt 0:01:43]} Rf4 {[%emt 0:00:56]} 76. Rxf4 {[%emt 0:01:29]} Kxf4 {[%emt 0:00:02]} 77. a6 {[%emt 0:00:19]} Rxb3 {[%emt 0:01:01]} 78. a7 {[%emt 0:00:31]} Ra3 {[%emt 0:00:03]} 79. Bd7 {[%emt 0:00:37]} Rxa7 {[%emt 0:00:55]} 80. Bxe6 {[%emt 0:00:02]} d4 {[%emt 0:00:25]} 81. Bf5 {[%emt 0:00:38]} h6 {[%emt 0:00:22]} 82. Kf2 {[%emt 0:01:30]} Ra2+ {[%emt 0:00:43]} 83. Ke1 {[%emt 0:00:17]} Ke3 {[%emt 0:00:13]} 84. Kd1 {[%emt 0:00:37]} d3 {[%emt 0:00:08]} 85. Kc1 {[%emt 0:01:34]} Rh2 {[%emt 0:01:15]} 0-1